bitfinex-derivatives/quotes_BTCF0:USTF0_20250811
["timestamp","ask_amount","ask_price","bid_price","bid_amount"]
[1754882125674,1.04270461,121900.0,121890.0,1.60613496]
[1754882125886,0.97076918,121900.0,121890.0,1.60613496]
[1754882126478,0.26638461,121900.0,121890.0,1.60613496]
[1754882126780,1.04274461,121900.0,121890.0,1.60613496]
[1754882127585,1.04274461,121900.0,121890.0,1.61023496]
[1754882127885,0.77636,121900.0,121890.0,1.61023496]
[1754882128079,0.27652461,121910.0,121900.0,0.48604]
[1754882128280,0.27652461,121910.0,121900.0,0.48614]
[1754882128281,1.05218461,121910.0,121900.0,0.48614]
[1754882128579,0.27642461,121910.0,121900.0,0.70065177]
[1754882128779,1.05218461,121910.0,121900.0,0.78268958]
[1754882129783,0.7858,121910.0,121900.0,0.78268958]
[1754882129989,1.05218461,121910.0,121900.0,1.28268958]
[1754882130488,1.05845461,121910.0,121900.0,1.28268958]
[1754882130683,1.05849461,121910.0,121900.0,1.28268958]
[1754882130884,0.28269461,121910.0,121900.0,1.28268958]
[1754882131084,1.05841461,121910.0,121900.0,1.28268958]
[1754882133092,1.05214461,121910.0,121900.0,1.28268958]
[1754882133386,1.05162461,121910.0,121900.0,1.28268958]
[1754882134193,0.27642461,121910.0,121900.0,1.28268958]
[1754882134492,1.05162461,121910.0,121900.0,1.28268958]
[1754882134991,1.05122461,121910.0,121900.0,1.28268958]
[1754882135291,0.78484,121910.0,121900.0,1.28268958]
[1754882135592,0.77464,121910.0,121900.0,0.99278958]
[1754882135794,0.77448,121910.0,121900.0,0.99278958]
[1754882135993,0.77448,121910.0,121900.0,1.27009958]
[1754882136292,1.04086461,121910.0,121900.0,1.27009958]
[1754882136888,0.26638461,121910.0,121900.0,1.27009958]
[1754882137091,1.04110461,121910.0,121900.0,1.27009958]
[1754882137291,1.20281461,121910.0,121900.0,1.27009958]
[1754882137691,0.93643,121910.0,121900.0,1.27009958]
[1754882137892,1.20281461,121910.0,121900.0,1.27009958]
[1754882138089,1.04110461,121910.0,121900.0,1.27009958]
[1754882138490,1.20281461,121910.0,121900.0,1.27009958]
[1754882138690,1.22307461,121910.0,121900.0,1.27009958]
[1754882140604,1.36238461,121910.0,121900.0,1.27009958]
[1754882141902,0.58818461,121910.0,121900.0,1.27009958]
[1754882142201,1.39471461,121910.0,121900.0,1.27009958]
[1754882142402,0.26638461,121910.0,121900.0,1.27009958]
[1754882142903,1.20173461,121910.0,121900.0,1.27009958]
[1754882143702,0.42809461,121910.0,121900.0,1.27009958]
[1754882144006,1.20173461,121910.0,121900.0,1.27009958]
[1754882147103,1.20049461,121910.0,121900.0,1.27009958]
[1754882147707,0.42809461,121910.0,121900.0,1.27009958]
[1754882147907,1.20049461,121910.0,121900.0,1.27009958]
[1754882148409,1.22075461,121910.0,121900.0,1.27009958]
[1754882149405,1.26879461,121910.0,121900.0,1.27009958]
[1754882152309,1.26879461,121910.0,121900.0,1.53289958]
[1754882153313,1.43959461,121910.0,121900.0,1.53289958]
[1754882156313,1.39155461,121910.0,121900.0,1.53289958]
[1754882157119,1.17321,121910.0,121900.0,1.53289958]
[1754882157410,1.43959461,121910.0,121900.0,1.53289958]
[1754882159816,1.39155461,121910.0,121900.0,1.53289958]
[1754882160521,1.12517,121910.0,121900.0,1.53289958]
[1754882160920,1.39155461,121910.0,121900.0,1.53289958]
[1754882162220,1.12517,121910.0,121900.0,1.53289958]
[1754882162516,1.39155461,121910.0,121900.0,1.53289958]
[1754882164014,1.12517,121910.0,121900.0,1.53289958]
[1754882164219,1.39155461,121910.0,121900.0,1.53289958]
[1754882164823,1.12517,121910.0,121900.0,1.53289958]
[1754882165916,0.80212,121910.0,121900.0,1.53289958]
[1754882166123,1.33600461,121910.0,121900.0,1.53289958]
[1754882166321,1.17429461,121910.0,121900.0,1.53289958]
[1754882166626,0.90719,121910.0,121900.0,1.53298407]
[1754882167219,1.0689,121910.0,121900.0,1.53298407]
[1754882167418,0.0001,121920.0,121900.0,1.87980729]
[1754882167623,0.0001,121920.0,121910.0,1.18653664]
[1754882167920,0.1001,121930.0,121910.0,1.31214]
[1754882168122,0.0001,121930.0,121920.0,0.4968]
[1754882168321,0.0001,121930.0,121920.0,0.1361]
[1754882168322,0.62718461,121930.0,121920.0,0.1361]
[1754882168626,0.62718461,121930.0,121920.0,0.3455961]
[1754882169018,0.62718461,121930.0,121920.0,1.19778046]
[1754882169220,0.62718461,121930.0,121920.0,0.35751275]
[1754882169519,0.26638461,121930.0,121920.0,0.85751275]
[1754882169724,0.26638461,121930.0,121920.0,1.98070475]
[1754882169924,0.0001,121940.0,121920.0,1.98070475]
[1754882170221,0.0001,121940.0,121920.0,2.22657275]
[1754882170414,0.26648461,121940.0,121920.0,2.22657275]
[1754882171422,0.0001,121940.0,121930.0,0.76318461]
[1754882171624,0.00018,121950.0,121930.0,1.26706]
[1754882171821,0.26656461,121950.0,121930.0,0.75914347]
[1754882172022,0.0001,121950.0,121940.0,0.9019243]
[1754882172224,0.26648461,121960.0,121940.0,1.2628243]
[1754882172426,0.26648461,121960.0,121940.0,1.47766642]
[1754882172622,0.26638461,121950.0,121940.0,0.85094212]
[1754882172825,0.62718461,121950.0,121940.0,0.79694966]
[1754882173127,1.20976461,121950.0,121940.0,0.79694966]
[1754882173623,0.59029,121950.0,121940.0,0.79694966]
[1754882173819,0.77688461,121950.0,121940.0,0.80094966]
[1754882174217,1.02418461,121950.0,121940.0,0.80094966]
[1754882174421,1.20976461,121950.0,121940.0,0.80094966]
[1754882174722,1.20976461,121950.0,121940.0,0.79894966]
[1754882174921,1.20976461,121950.0,121940.0,0.80494966]
[1754882175325,1.97984461,121950.0,121940.0,0.79894966]
[1754882175626,1.97984461,121950.0,121940.0,0.80194966]
[1754882175819,1.97984461,121950.0,121940.0,0.99100582]
[1754882176323,1.97984461,121950.0,121940.0,0.99110211]
[1754882176524,2.02980461,121950.0,121940.0,0.9911054]
[1754882176828,2.02980461,121950.0,121910.0,0.19904037]
[1754882176829,0.36644488,121930.0,121910.0,0.19904037]
[1754882177023,1.8681041,121920.0,121910.0,0.26558097]
[1754882177223,3.4585041,121920.0,121910.0,0.47345582]
[1754882177422,3.4585041,121920.0,121910.0,0.55546]
[1754882177630,3.27759922,121920.0,121910.0,0.55546]
[1754882177826,2.3913041,121920.0,121910.0,7.541e-05]
[1754882178022,3.0256341,121920.0,121910.0,0.1699252]
[1754882178328,0.47758,121890.0,121870.0,0.77024]
[1754882178534,0.5835,121880.0,121870.0,1.0915]
[1754882178726,0.6578,121880.0,121870.0,0.61430302]
[1754882178926,0.6558,121880.0,121870.0,0.61440302]
[1754882179130,0.70551,121880.0,121870.0,0.61440302]
[1754882179527,2.55514922,121880.0,121870.0,0.35823548]
[1754882179733,3.5060141,121880.0,121870.0,0.85832971]
[1754882180034,3.2297925,121880.0,121870.0,0.86432971]
[1754882180227,3.33808051,121880.0,121870.0,0.86432971]
[1754882180721,3.33808051,121880.0,121870.0,0.86532971]
[1754882181625,3.33808051,121880.0,121870.0,0.86432971]
[1754882181820,2.53880002,121880.0,121870.0,0.86432971]
[1754882182025,3.30992002,121880.0,121870.0,0.85832971]
[1754882182225,2.75438252,121880.0,121870.0,1.17949548]
[1754882182425,1.43414252,121880.0,121870.0,1.17949548]
[1754882182920,0.66706252,121880.0,121870.0,1.17949548]
[1754882183228,1.43714252,121880.0,121870.0,1.17949548]
[1754882183425,1.43814252,121880.0,121870.0,1.17949548]
[1754882183620,2.25834252,121880.0,121870.0,1.00368548]
[1754882183931,2.81388002,121880.0,121870.0,0.85823548]
[1754882184128,2.81288002,121880.0,121870.0,0.85831455]
[1754882184327,2.04280002,121880.0,121870.0,0.85831455]
[1754882184523,2.86258002,121880.0,121870.0,0.85831455]
[1754882185431,2.85958002,121880.0,121870.0,0.85831455]
[1754882186027,2.86058002,121880.0,121870.0,0.85831455]
[1754882187031,2.86058002,121880.0,121870.0,0.86231455]
[1754882187731,2.09050002,121880.0,121870.0,0.86231455]
[1754882187921,0.04971,121840.0,121830.0,0.3702]
[1754882188121,0.3608,121850.0,121830.0,0.3702]
[1754882188321,1.01125815,121860.0,121840.0,0.38190634]
[1754882188525,0.30903167,121860.0,121850.0,0.48717]
[1754882188727,0.30903167,121860.0,121850.0,0.49127]
[1754882188923,1.33416244,121860.0,121850.0,0.26908122]
[1754882189124,2.28564732,121860.0,121850.0,0.30323066]
[1754882189325,1.51512732,121860.0,121850.0,0.30323066]
[1754882189732,2.28576732,121860.0,121850.0,0.30323066]
[1754882189929,1.49545007,121860.0,121850.0,0.30323066]
[1754882190129,1.48561145,121860.0,121850.0,0.2087635]
[1754882190334,2.25725145,121860.0,121850.0,0.7087635]
[1754882190530,0.3619,121860.0,121850.0,0.7568435]
[1754882190830,0.67160249,121870.0,121860.0,0.19353]
[1754882191024,1.60856064,121870.0,121860.0,0.04813965]
[1754882191228,1.60856064,121870.0,121860.0,0.2649226]
[1754882191429,2.37900064,121870.0,121860.0,0.34698061]
[1754882191625,1.60856064,121870.0,121860.0,0.34698061]
[1754882191826,1.23388802,121870.0,121860.0,0.78611096]
[1754882192027,0.77156,121870.0,121860.0,0.79021096]
[1754882192228,0.77148,121870.0,121860.0,0.71832096]
[1754882192441,1.20688,121880.0,121870.0,0.48717]
[1754882192732,1.13248,121880.0,121870.0,0.48727]
[1754882192928,1.13248,121880.0,121870.0,0.69870981]
[1754882193134,1.13248,121880.0,121870.0,0.78076782]
[1754882193536,1.20678,121880.0,121870.0,0.78076782]
[1754882193932,1.20678,121880.0,121870.0,0.78176782]
[1754882194133,1.13248,121880.0,121870.0,0.78176782]
[1754882194332,1.13248,121880.0,121870.0,0.78276782]
[1754882194535,1.13248,121880.0,121870.0,0.78376782]
[1754882194936,1.20678,121880.0,121870.0,0.78376782]
[1754882195431,1.25593,121880.0,121870.0,0.78376782]
[1754882195633,1.15827064,121880.0,121870.0,0.58739811]
[1754882195837,1.92923064,121880.0,121870.0,0.58748581]
[1754882196033,1.15827064,121880.0,121870.0,0.58748581]
[1754882196238,1.92923064,121880.0,121870.0,0.58748581]
[1754882196538,1.15827064,121880.0,121870.0,0.58748581]
[1754882196834,0.65772987,121880.0,121870.0,1.05532581]
[1754882197036,1.12164,121880.0,121870.0,1.05223811]
[1754882197239,0.77384,121880.0,121870.0,1.05223811]
[1754882197432,0.28584,121880.0,121870.0,1.05223811]
[1754882197840,0.26616705,121880.0,121870.0,1.55223811]
[1754882198633,0.77432,121880.0,121870.0,1.55223811]
[1754882198842,0.0001,121890.0,121870.0,1.91303811]
[1754882199037,1.07112802,121890.0,121880.0,0.46784]
[1754882199338,1.07102802,121890.0,121880.0,0.46794]
[1754882199541,1.07102802,121890.0,121880.0,0.68025618]
[1754882199840,0.0001,121900.0,121890.0,0.46784]
[1754882200030,0.02484,121920.0,121910.0,0.37259]
[1754882200235,1.09638802,121920.0,121910.0,0.419117]
[1754882200429,1.09638802,121920.0,121910.0,1.07865335]
[1754882200430,0.15070815,121920.0,121910.0,1.07865335]
[1754882200629,0.39951262,121930.0,121920.0,0.46784]
[1754882200837,0.32362802,121930.0,121920.0,0.828743]
[1754882201032,0.29878802,121930.0,121920.0,0.85825339]
[1754882201232,1.07146802,121930.0,121920.0,0.94037102]
[1754882201641,1.07146802,121930.0,121920.0,1.44037102]
[1754882201844,0.0001,121940.0,121930.0,0.28229]
[1754882202035,0.77244,121940.0,121930.0,0.64319]
[1754882202339,0.78789,121940.0,121930.0,0.85208843]
[1754882202531,0.77232,121940.0,121930.0,0.65180933]
[1754882202838,0.0001,121950.0,121940.0,0.28229]
[1754882203038,0.16595,121960.0,121940.0,0.43245904]
[1754882203342,0.04705,121950.0,121940.0,0.64146437]
[1754882203537,0.04705,121950.0,121940.0,0.72346855]
[1754882203743,0.21768,121950.0,121940.0,0.72346855]
[1754882204339,0.05205,121950.0,121940.0,0.72346855]
[1754882204729,0.005,121950.0,121940.0,1.26624917]
[1754882204934,0.005,121950.0,121940.0,2.03836917]
[1754882205443,0.005,121950.0,121940.0,0.94157655]
[1754882205742,0.0001,121960.0,121940.0,1.67394137]
[1754882205931,0.0001,121960.0,121950.0,0.3608]
[1754882206130,0.42172262,121960.0,121950.0,1.13306]
[1754882206331,0.42172262,121960.0,121950.0,1.50708729]
[1754882206536,0.42172262,121960.0,121950.0,1.58908811]
[1754882207039,0.04705,121960.0,121950.0,1.58908811]
[1754882207241,0.04905,121960.0,121950.0,1.58908811]
[1754882207544,0.006,121960.0,121950.0,0.81692811]
[1754882207744,0.006,121960.0,121950.0,0.86692811]
[1754882208044,0.006,121960.0,121950.0,2.13888811]
[1754882208243,0.006,121960.0,121950.0,2.08888811]
[1754882208743,0.007,121960.0,121950.0,2.08888811]
[1754882209336,0.007,121960.0,121950.0,1.31692811]
[1754882209534,0.007,121960.0,121950.0,2.08868811]
[1754882210139,0.007,121960.0,121950.0,1.74160073]
[1754882210338,0.007,121960.0,121950.0,1.97453611]
[1754882211645,0.007,121960.0,121950.0,1.92453611]
[1754882212435,0.007,121960.0,121950.0,1.92463087]
[1754882212639,0.007,121960.0,121950.0,1.92453611]
[1754882212840,0.007,121960.0,121950.0,1.92460938]
[1754882213045,0.37477262,121970.0,121950.0,1.97460148]
[1754882213246,0.37477262,121970.0,121960.0,0.3608]
[1754882213439,0.37467262,121970.0,121960.0,1.295764]
[1754882213644,0.37467262,121970.0,121960.0,1.50598372]
[1754882213839,0.0001,121980.0,121960.0,0.83911717]
[1754882214050,0.0001,121980.0,121970.0,0.00550439]
[1754882214345,0.00015336,121990.0,121970.0,1.25847254]
[1754882214548,0.00015336,121990.0,121970.0,0.62847994]
[1754882214847,0.00015336,121990.0,121980.0,0.39588926]
[1754882215148,5.336e-05,121990.0,121980.0,0.8795386]
[1754882215346,5.336e-05,121990.0,121980.0,0.97161898]
[1754882215650,5.336e-05,121990.0,121980.0,1.23959627]
[1754882216350,5.336e-05,121990.0,121980.0,1.88633163]
[1754882216545,5.336e-05,121990.0,121980.0,2.28197901]
[1754882217546,5.336e-05,121990.0,121980.0,2.23197901]
[1754882217844,5.336e-05,121990.0,121980.0,2.66065163]
[1754882218045,0.0001,122000.0,121980.0,2.61065163]
[1754882218248,0.0001,122000.0,121990.0,0.4968]
[1754882218438,0.47477262,122010.0,121990.0,0.4969]
[1754882218639,0.4609,122010.0,122000.0,0.49561225]
[1754882218844,0.3608,122010.0,122000.0,0.90602]
[1754882219044,0.3608,122010.0,122000.0,1.11696932]
[1754882219549,0.3608,122010.0,122000.0,1.19888515]
[1754882219749,0.73547262,122010.0,122000.0,0.42901317]
[1754882219944,0.40785,122010.0,122000.0,1.20181317]
[1754882220345,0.3608,122010.0,122000.0,1.70189512]
[1754882220547,0.3608,122010.0,122000.0,0.93210638]
[1754882220747,0.3608,122010.0,122000.0,1.70165317]
[1754882220951,0.40785,122010.0,122000.0,1.70165317]
[1754882221152,0.78252262,122010.0,122000.0,0.93201317]
[1754882221348,0.78252262,122010.0,122000.0,1.19681317]
[1754882221349,0.40785,122010.0,122000.0,1.19681317]
[1754882221553,1.48226262,122010.0,122000.0,1.19681317]
[1754882221855,2.30190262,122010.0,122000.0,0.79801317]
[1754882222042,2.46689077,122010.0,122000.0,0.69801317]
[1754882222349,2.41689077,122010.0,122000.0,0.70211317]
[1754882222544,1.59725077,122010.0,122000.0,0.70211317]
[1754882222941,0.7216,122010.0,122000.0,0.70211317]
[1754882223148,0.76865,122010.0,122000.0,0.83821317]
[1754882223349,0.3608,122010.0,122000.0,0.83411317]
[1754882223752,0.3608,122010.0,122000.0,0.83821317]
[1754882223948,0.3608,122010.0,122000.0,0.83621317]
[1754882224154,0.3608,122010.0,122000.0,0.83721317]
[1754882224754,0.40785,122010.0,122000.0,0.83721317]
[1754882224950,0.40785,122010.0,122000.0,0.83621317]
[1754882225151,0.40785,122010.0,122000.0,0.83821317]
[1754882225346,0.3608,122010.0,122000.0,0.83821317]
[1754882225853,1.37991262,122010.0,122000.0,0.69819826]
[1754882226047,1.00524,122010.0,122000.0,0.69811317]
[1754882226247,0.93532,122010.0,122000.0,0.69811317]
[1754882226554,1.00524,122010.0,122000.0,0.69811317]
[1754882226754,0.3608,122010.0,122000.0,0.83411317]
[1754882227454,0.40777,122020.0,122000.0,1.53771317]
[1754882227849,0.40777,122020.0,122000.0,1.53971317]
[1754882229054,0.40777,122020.0,122000.0,1.53471317]
[1754882229459,0.40777,122020.0,122000.0,1.53971317]
[1754882230052,0.57462,122020.0,122010.0,0.0041]
[1754882230356,0.64444,122020.0,122010.0,0.09024336]
[1754882230556,0.64444,122020.0,122010.0,0.21336914]
[1754882230752,0.64444,122020.0,122010.0,0.29532963]
[1754882230949,0.3608,122020.0,122010.0,0.29532963]
[1754882231153,0.85942815,122020.0,122010.0,0.29532963]
[1754882231456,1.62974815,122020.0,122010.0,0.36061613]
[1754882231860,0.78950815,122020.0,122010.0,0.62641613]
[1754882232160,1.34488,122020.0,122010.0,0.62641613]
[1754882232361,1.34488,122020.0,122010.0,0.62741613]
[1754882232858,1.34488,122020.0,122010.0,1.12741613]
[1754882233259,0.57452,122020.0,122010.0,1.12741613]
[1754882233462,0.64444,122020.0,122010.0,1.12736812]
[1754882233758,0.64444,122020.0,122010.0,1.26336812]
[1754882234163,1.78935262,122020.0,122010.0,1.26336812]
[1754882234354,1.78935262,122020.0,122010.0,1.26342919]
[1754882234561,1.41468,122020.0,122010.0,1.26336812]
[1754882235066,1.41468,122020.0,122010.0,1.25931613]
[1754882235262,1.41468,122020.0,121990.0,1.21104]
[1754882235263,2.05366077,122020.0,121980.0,0.136]
[1754882235454,0.59757,122000.0,121990.0,0.04943]
[1754882235766,1.72873,122000.0,121990.0,0.26257636]
[1754882235969,2.76343815,122000.0,121990.0,0.04943]
[1754882236262,1.99307815,122000.0,121990.0,0.20751475]
[1754882236462,2.04317815,122000.0,121990.0,0.10010532]
[1754882236767,3.18849077,122000.0,121990.0,0.18545295]
[1754882237366,3.18849077,122000.0,121990.0,0.68545295]
[1754882237576,3.1785649,122000.0,121990.0,0.53545295]
[1754882237775,3.1785649,122000.0,121990.0,0.74014416]
[1754882237977,3.1785649,122000.0,121990.0,0.74314416]
[1754882238272,3.1785649,122000.0,121990.0,0.08597057]
[1754882238479,2.72660675,122000.0,121980.0,0.18654528]
[1754882238665,1.55519262,121990.0,121950.0,0.44560348]
[1754882238866,1.55431262,121960.0,121950.0,0.27490348]
[1754882239176,1.55431262,121960.0,121950.0,0.49170418]
[1754882239371,1.60431262,121960.0,121950.0,0.57367475]
[1754882239674,2.37487262,121960.0,121950.0,0.34119127]
[1754882239980,1.60441262,121960.0,121950.0,0.34129127]
[1754882240169,2.37493262,121960.0,121950.0,0.34129127]
[1754882240570,1.55509262,121960.0,121950.0,0.34129127]
[1754882240875,2.37505262,121960.0,121950.0,0.84129127]
[1754882241073,1.60453262,121960.0,121950.0,0.84129127]
[1754882241273,1.55483262,121960.0,121910.0,0.04943]
[1754882241573,1.71486586,121920.0,121900.0,0.04943]
[1754882241780,0.34114102,121920.0,121910.0,0.29998118]
[1754882241982,2.09105426,121920.0,121910.0,0.08199745]
[1754882242272,2.09105426,121920.0,121910.0,0.27192187]
[1754882242273,2.09101426,121920.0,121910.0,0.27192187]
[1754882242573,2.08811426,121920.0,121910.0,0.35404623]
[1754882242775,2.08811426,121920.0,121910.0,0.85404623]
[1754882242974,2.46278688,121920.0,121910.0,0.91676248]
[1754882243279,2.46278688,121920.0,121910.0,0.91776248]
[1754882243969,2.46278688,121920.0,121910.0,0.91986136]
[1754882244171,2.08811426,121920.0,121910.0,0.91976248]
[1754882244572,2.08811426,121920.0,121910.0,0.87042574]
[1754882244768,1.31763426,121920.0,121910.0,0.87033248]
[1754882244975,1.69230688,121920.0,121910.0,0.87033248]
[1754882245176,1.69230688,121920.0,121910.0,0.87343248]
[1754882245481,2.46246688,121920.0,121910.0,0.87343248]
[1754882245773,2.46238688,121920.0,121910.0,0.87343248]
[1754882246175,2.43233426,121920.0,121910.0,0.25083159]
[1754882246377,1.84377364,121920.0,121910.0,0.54566433]
[1754882247076,1.07361364,121920.0,121910.0,0.54566433]
[1754882247284,1.66243426,121920.0,121910.0,0.54576433]
[1754882247478,2.43277426,121920.0,121900.0,0.23186211]
[1754882247775,0.73547262,121910.0,121900.0,0.23186211]
[1754882247975,0.73547262,121910.0,121900.0,0.07636478]
[1754882248178,1.71977663,121910.0,121900.0,0.07636478]
[1754882248383,1.71977663,121910.0,121900.0,0.70310329]
[1754882248583,1.71987663,121910.0,121900.0,0.70320329]
[1754882248780,1.71987663,121910.0,121900.0,0.69910329]
[1754882248982,1.72487663,121910.0,121900.0,0.69910329]
[1754882250072,1.72687663,121910.0,121900.0,0.69910329]
[1754882250278,1.67687663,121910.0,121900.0,0.78805006]
[1754882250574,0.90663663,121910.0,121900.0,0.78805006]
[1754882250778,0.3679,121910.0,121900.0,0.90243711]
[1754882250983,1.11835641,121910.0,121900.0,0.90243711]
[1754882251287,1.49302903,121910.0,121900.0,0.85300711]
[1754882251585,1.65709304,121910.0,121900.0,0.85309967]
[1754882252083,1.65409304,121910.0,121900.0,0.85309967]
[1754882252383,0.71890903,121910.0,121900.0,0.85309967]
[1754882252572,0.71690903,121910.0,121900.0,0.90243711]
[1754882252779,1.49002903,121910.0,121900.0,1.07313711]
[1754882252975,1.11535641,121910.0,121900.0,1.07313711]
[1754882253177,1.11435641,121910.0,121900.0,1.07313711]
[1754882253380,1.11635641,121910.0,121900.0,1.07313711]
[1754882253582,1.11635641,121910.0,121900.0,1.20913711]
[1754882253779,1.11643641,121910.0,121900.0,1.07313711]
[1754882254085,1.11643641,121910.0,121900.0,0.90653711]
[1754882254283,0.72090903,121910.0,121900.0,0.85710711]
[1754882254582,0.72090903,121910.0,121900.0,0.90653711]
[1754882254774,1.49110903,121910.0,121900.0,0.90653711]
[1754882255082,1.49110903,121910.0,121900.0,0.85710711]
[1754882255279,1.49110903,121910.0,121900.0,0.90653711]
[1754882255479,1.49110903,121910.0,121900.0,1.14583711]
[1754882255678,1.11643641,121910.0,121900.0,1.14583711]
[1754882255983,1.11647641,121910.0,121900.0,1.14583711]
[1754882256575,0.34623641,121910.0,121900.0,1.14583711]
[1754882256786,1.11647641,121910.0,121900.0,1.14583711]
[1754882257184,0.34623641,121910.0,121900.0,1.31328159]
[1754882257381,1.11647641,121910.0,121900.0,1.31328159]
[1754882257980,0.34623641,121910.0,121900.0,1.31328159]
[1754882258188,1.11647641,121910.0,121900.0,1.31328159]
[1754882258591,0.34623641,121910.0,121900.0,1.31328159]
[1754882258787,1.11647641,121910.0,121900.0,1.31328159]
[1754882260184,1.11147641,121910.0,121900.0,1.31328159]
[1754882260389,1.11147641,121910.0,121900.0,1.31528159]
[1754882262184,1.11147641,121910.0,121900.0,1.31428159]
[1754882262377,0.34123641,121910.0,121900.0,1.31328159]
[1754882262587,1.11147641,121910.0,121900.0,1.31328159]
[1754882262786,0.34123641,121910.0,121900.0,1.31335317]
[1754882262987,1.11147641,121910.0,121900.0,1.30927081]
[1754882263190,1.11147641,121910.0,121900.0,1.30927879]
[1754882263384,1.11147641,121910.0,121900.0,1.30918159]
[1754882263578,1.11147641,121910.0,121900.0,1.20595799]
[1754882263782,0.34123641,121910.0,121900.0,1.14182626]
[1754882263981,1.48610903,121910.0,121900.0,1.06998777]
[1754882264191,0.71590903,121910.0,121900.0,0.90243711]
[1754882264788,1.48610903,121910.0,121900.0,0.90243711]
[1754882265391,1.48810903,121910.0,121900.0,0.90243711]
[1754882265692,1.48610903,121910.0,121900.0,0.90243711]
[1754882265993,1.48910903,121910.0,121900.0,0.90243711]
[1754882266589,1.48910903,121910.0,121900.0,0.85300711]
[1754882266794,1.48910903,121910.0,121900.0,0.85307212]
[1754882267189,1.48910903,121910.0,121900.0,0.85717212]
[1754882267393,1.65317304,121910.0,121900.0,0.85717212]
[1754882267891,0.88287304,121910.0,121900.0,0.02947774]
[1754882268091,1.65307304,121910.0,121900.0,0.32513049]
[1754882268299,1.12960903,121910.0,121860.0,0.04785]
[1754882268494,0.7216,121870.0,121860.0,0.04785]
[1754882268694,1.49176,121870.0,121860.0,0.25700643]
[1754882268992,1.49176,121870.0,121860.0,0.3609283]
[1754882269200,1.49186,121870.0,121860.0,0.3610283]
[1754882269598,1.49186,121870.0,121860.0,0.5364083]
[1754882269797,1.49186,121870.0,121860.0,1.0364083]
[1754882269996,1.49186,121870.0,121860.0,1.0983183]
[1754882270195,1.49186,121870.0,121860.0,1.1003183]
[1754882270396,0.7217,121870.0,121860.0,1.47499092]
[1754882270592,1.4919,121870.0,121860.0,1.6424354]
[1754882270896,1.4919,121870.0,121860.0,1.64253818]
[1754882271089,1.4919,121870.0,121860.0,1.6424354]
[1754882271287,1.4919,121870.0,121860.0,1.6404354]
[1754882271492,1.4919,121870.0,121860.0,1.82897732]
[1754882271701,1.4919,121870.0,121860.0,1.82697732]
[1754882271900,0.7703,121870.0,121860.0,1.82697732]
[1754882272087,1.1311,121870.0,121860.0,1.8938013]
[1754882272494,1.13118,121870.0,121860.0,1.52012868]
[1754882273601,1.13118,121870.0,121860.0,1.8948013]
[1754882274594,1.13118,121870.0,121860.0,1.52012868]
[1754882274995,1.13118,121870.0,121860.0,1.52022741]
[1754882275192,1.13108,121870.0,121860.0,0.00010503]
[1754882275393,1.32426524,121870.0,121840.0,0.18854192]
[1754882275595,1.13288,121880.0,121860.0,0.20576544]
[1754882275793,1.49188,121870.0,121860.0,0.09185104]
[1754882275995,0.7216,121870.0,121860.0,0.17255743]
[1754882276192,1.49188,121870.0,121860.0,0.25461544]
[1754882276398,0.88582,121870.0,121860.0,0.29745782]
[1754882276591,0.93582,121870.0,121860.0,0.20694162]
[1754882276801,2.45590524,121870.0,121850.0,0.18854192]
[1754882277000,1.50631262,121860.0,121850.0,0.18854192]
[1754882277195,1.50631262,121860.0,121850.0,0.2129707]
[1754882277391,1.32427324,121860.0,121850.0,0.29502871]
[1754882277599,1.93102524,121860.0,121820.0,0.18854192]
[1754882277804,1.09627262,121830.0,121820.0,0.18854192]
[1754882278004,1.09637262,121830.0,121820.0,0.48377073]
[1754882278193,1.86721262,121830.0,121820.0,0.48377073]
[1754882278396,1.86721262,121830.0,121820.0,0.79522881]
[1754882278997,1.86921262,121830.0,121820.0,0.79522881]
[1754882279197,1.09837262,121830.0,121820.0,0.79522881]
[1754882279495,1.86913262,121830.0,121820.0,0.79522881]
[1754882279700,1.86881262,121830.0,121820.0,0.79522881]
[1754882279899,1.09837262,121830.0,121820.0,0.86051208]
[1754882280202,2.03298062,121830.0,121820.0,0.86051208]
[1754882281197,1.14827262,121830.0,121790.0,0.04785]
[1754882281397,1.14827262,121830.0,121790.0,0.28714]
[1754882281398,0.7216,121800.0,121790.0,0.28714]
[1754882281597,0.7216,121800.0,121790.0,0.49805919]
[1754882281803,0.3608,121800.0,121790.0,0.97254599]
[1754882281999,0.47052,121800.0,121790.0,1.21041399]
[1754882282204,0.47052,121800.0,121790.0,1.26050079]
[1754882282397,0.3628,121830.0,121790.0,1.76041399]
[1754882282398,0.77052,121810.0,121790.0,1.76041399]
[1754882282598,0.40093,121840.0,121810.0,0.06791]
[1754882282799,0.40093,121840.0,121830.0,0.44258262]
[1754882283000,1.17145,121840.0,121830.0,0.44268373]
[1754882283307,1.17145,121840.0,121830.0,0.74275179]
[1754882283604,0.81608,121840.0,121830.0,0.74285179]
[1754882283800,0.77062,121840.0,121830.0,0.74285179]
[1754882284108,0.0001,121840.0,121830.0,0.93182183]
[1754882284307,0.68868659,121840.0,121830.0,1.64588183]
[1754882284498,0.3608,121860.0,121840.0,0.06791]
[1754882284705,0.3608,121860.0,121850.0,0.44258262]
[1754882284902,0.7706,121860.0,121850.0,0.44258262]
[1754882285103,0.04546,121860.0,121850.0,0.73873289]
[1754882285300,0.81606,121860.0,121850.0,0.92770293]
[1754882285500,0.81616,121860.0,121850.0,0.92790126]
[1754882285701,0.81616,121860.0,121850.0,0.9278686]
[1754882285896,0.81616,121860.0,121850.0,0.92786673]
[1754882286103,0.04556,121860.0,121850.0,1.42780293]
[1754882286302,0.65047,121860.0,121850.0,0.98522031]
[1754882286502,0.65047,121860.0,121850.0,1.24452289]
[1754882286503,0.40636,121860.0,121850.0,1.24452289]
[1754882286709,0.65047,121860.0,121850.0,1.24452289]
[1754882287004,1.42103,121860.0,121850.0,1.24452289]
[1754882287208,1.17692,121860.0,121850.0,1.24452289]
[1754882287609,1.17792,121860.0,121850.0,1.24452289]
[1754882287803,1.17792,121860.0,121850.0,1.43359178]
[1754882288001,0.04656,121860.0,121850.0,1.43349293]
[1754882288202,0.003,121860.0,121850.0,1.43339293]
[1754882288399,0.77056,121870.0,121850.0,1.79419293]
[1754882288604,0.81599,121870.0,121860.0,0.44827262]
[1754882288801,0.81599,121870.0,121860.0,0.45227262]
[1754882288998,0.04543,121880.0,121860.0,1.21646914]
[1754882289201,0.40623,121890.0,121870.0,0.73547262]
[1754882289402,1.4209,121890.0,121880.0,0.59351886]
[1754882289604,1.4209,121890.0,121880.0,0.59361886]
[1754882289799,1.4209,121890.0,121880.0,0.80805143]
[1754882290005,1.4209,121890.0,121880.0,0.95525876]
[1754882290209,1.4209,121890.0,121880.0,0.81001252]
[1754882290604,1.4209,121890.0,121880.0,0.4353399]